bitfinex/quotes_ETHUSD_20250114
["timestamp","ask_amount","ask_price","bid_price","bid_amount"]
[1736869770298,0.77194895,3209.1,3209.0,3.11623]
[1736869770466,0.77194895,3209.1,3208.8,3.11638]
[1736869771007,0.77194895,3209.1,3209.0,3.11623]
[1736869771183,0.61293232,3210.3,3209.4,3.11583]
[1736869771349,0.98571955,3210.3,3209.4,3.11583]
[1736869771554,0.3153345,3210.7,3209.0,0.8186]
[1736869771785,3.47440783,3211.5,3209.2,6.11604]
[1736869771786,3.11449,3210.8,3209.2,6.11604]
[1736869772094,3.11449,3210.8,3209.4,3.11584]
[1736869772248,3.72323912,3210.8,3209.0,4.10797253]
[1736869772458,3.72323912,3210.8,3209.9,3.11532]
[1736869772657,0.60874912,3210.8,3209.1,0.23151125]
[1736869772899,3.1147,3210.6,3209.7,3.11555]
[1736869773395,0.7921,3210.5,3209.7,3.11555]
[1736869773578,0.7921,3210.5,3209.1,0.52088378]
[1736869773891,0.7921,3210.3,3209.5,3.11573]
[1736869777063,0.7921,3210.3,3209.1,3.11613]
[1736869777264,0.7921,3210.3,3209.7,3.1155]
[1736869777886,0.7921,3210.3,3209.9,3.11536]
[1736869778080,0.7921,3210.3,3209.5,3.11571]
[1736869778273,0.7921,3210.3,3209.7,3.11547]
[1736869778661,0.7921,3210.3,3209.8,3.11538]
[1736869779067,0.7921,3210.3,3209.1,3.11613]
[1736869779068,0.7921,3211.3,3209.4,0.8186]
[1736869779281,0.7921,3211.1,3210.2,3.11505]
[1736869779975,0.7921,3211.1,3210.3,3.11496]
[1736869780378,0.7921,3211.1,3210.1,3.11514]
[1736869780577,3.90629,3211.1,3210.1,3.11514]
[1736869780778,0.7921,3211.1,3210.3,3.11495]
[1736869781174,0.7921,3210.9,3209.4,0.8186]
[1736869781397,0.7921,3210.7,3209.9,3.11535]
[1736869782063,0.7921,3210.7,3209.9,3.11527]
[1736869782995,0.7921,3210.7,3209.6,3.11565]
[1736869783207,0.7921,3210.7,3210.0,3.11525]
[1736869783818,1.182754,3210.7,3209.5,3.0]
[1736869783996,1.182754,3210.7,3210.3,3.11493]
[1736869783997,0.7921,3210.7,3210.3,3.11493]
[1736869784568,0.7921,3210.7,3210.0,3.11517]
[1736869784802,0.7921,3210.7,3210.1,3.11514]
[1736869785097,0.7921,3210.7,3209.7,6.11552]
[1736869785307,0.7765,3210.5,3209.6,3.11564]
[1736869785602,3.25239694,3210.2,3209.1,3.11608]
[1736869785762,0.7765,3210.1,3208.8,3.11642]
[1736869786075,0.7765,3210.1,3208.9,6.25239694]
[1736869786461,0.7765,3210.1,3209.5,3.11571]
[1736869786663,0.7765,3210.1,3208.9,3.25239694]
[1736869786862,0.7765,3210.1,3208.7,0.8212]
[1736869787168,0.7765,3210.1,3209.3,3.11591]
[1736869787369,1.165651,3210.1,3209.3,3.11591]
[1736869788367,0.7765,3209.8,3208.7,0.28896942]
[1736869788570,0.03894579,3210.0,3208.4,2.069532]
[1736869788571,0.7765,3209.6,3208.9,3.11628]
[1736869788782,0.7765,3209.6,3209.2,3.11601]
[1736869789077,0.7765,3209.6,3209.2,3.11603]
[1736869789777,0.7765,3209.6,3209.5,3.11575]
[1736869789984,0.7765,3211.0,3209.7,3.11546]
[1736869790164,0.7765,3210.7,3210.0,3.11519]
[1736869791568,0.7765,3210.7,3210.4,3.11484]
[1736869792298,0.7765,3211.4,3210.2,3.11507]
[1736869792601,3.7765,3211.4,3210.4,3.11479]
[1736869792804,3.7765,3211.4,3209.9,3.0]
[1736869792970,6.11398,3211.4,3210.3,3.11492]
[1736869793170,0.7765,3211.3,3210.3,3.11492]
[1736869793385,0.7765,3211.3,3210.4,3.1148]
[1736869793700,0.7765,3211.1,3210.2,3.115]
[1736869793902,0.7765,3210.9,3209.8,0.8212]
[1736869794203,0.7765,3210.9,3210.1,3.11513]
[1736869794403,1.165586,3210.9,3209.9,3.11528]
[1736869794607,0.7765,3210.8,3209.9,3.11528]
[1736869795365,0.7765,3210.7,3209.9,3.11528]
[1736869796112,3.89108,3210.7,3209.7,3.11552]
[1736869796302,3.89108,3210.7,3209.8,3.11545]
[1736869796471,0.7765,3210.5,3209.1,0.8212]
[1736869796905,0.7765,3210.5,3209.7,3.11554]
[1736869797478,0.7765,3210.5,3209.5,3.11567]
[1736869797682,0.7765,3210.5,3209.3,3.11591]
[1736869797897,0.7765,3210.5,3209.7,3.11553]
[1736869798080,0.7765,3210.4,3209.2,3.0]
[1736869798286,0.7765,3210.3,3209.2,3.0]
[1736869798578,0.7765,3210.3,3210.0,3.11516]
[1736869798908,0.7765,3210.3,3210.1,3.11516]
[1736869799079,0.7765,3210.3,3209.7,3.11555]
[1736869799080,0.7765,3211.2,3210.3,3.11493]
[1736869799285,0.7765,3211.2,3209.6,3.11565]
[1736869799286,0.7765,3210.8,3209.9,3.11528]
[1736869799486,0.7765,3210.8,3209.5,3.25239694]
[1736869799690,0.7765,3210.8,3210.1,3.11516]
[1736869800075,0.7765,3210.8,3210.2,3.11506]
[1736869800806,0.7765,3210.8,3209.9,3.1153]
[1736869800981,0.7765,3210.8,3209.8,3.11541]
[1736869800982,0.8229,3210.6,3209.8,3.11541]
[1736869801186,0.8229,3210.6,3210.1,3.11516]
[1736869801387,0.8229,3210.6,3209.5,6.25239694]
[1736869801591,0.8229,3210.6,3210.1,3.11511]
[1736869801809,0.8229,3210.6,3210.0,3.11524]
[1736869801987,0.8229,3210.6,3209.7,3.11553]
[1736869802188,3.93758,3210.6,3209.7,3.11553]
[1736869802399,1.216658,3210.6,3209.4,3.11584]
[1736869802577,0.8229,3210.1,3208.7,0.8443]
[1736869802778,0.55,3210.4,3209.0,3.11623]
[1736869802779,0.8229,3209.8,3209.0,3.11623]
[1736869802978,0.8229,3209.8,3209.2,3.11596]
[1736869803204,0.8229,3209.8,3208.8,3.11633]
[1736869803205,0.8229,3209.8,3209.5,0.23165271]
[1736869803581,0.8229,3209.8,3209.5,3.34739271]
[1736869803787,0.8229,3209.8,3209.5,0.23165271]
[1736869804309,0.8229,3209.6,3209.5,0.23165271]
[1736869804516,1.22064042,3209.6,3209.5,0.23165271]
[1736869804673,0.8229,3209.6,3209.5,0.23165271]
[1736869804989,0.8229,3209.6,3208.1,4.36553]
[1736869804990,0.8229,3209.6,3207.5,7.60443909]
[1736869804991,3.11666,3208.6,3207.5,7.60443909]
[1736869805308,0.8229,3208.2,3207.4,4.48677909]
[1736869805509,3.97889608,3208.2,3207.6,0.28984901]
[1736869805727,0.8229,3208.2,3207.6,0.28984901]
[1736869806035,0.8229,3208.2,3207.7,3.11741]
[1736869806337,0.8229,3208.2,3207.6,0.28984901]
[1736869806509,0.8229,3208.2,3207.5,3.11766]
[1736869806714,0.8229,3208.2,3207.1,6.37046694]
[1736869806715,0.8229,3208.2,3207.7,3.11747]
[1736869807080,0.8229,3208.2,3207.0,3.11809]
[1736869807284,0.8229,3208.2,3207.7,3.11748]
[1736869807730,0.8229,3208.2,3207.3,6.11784]
[1736869808237,0.8229,3208.2,3207.7,3.11745]
[1736869808581,0.8229,3208.2,3207.5,3.11768]
[1736869808886,0.8229,3208.2,3207.1,3.0]
[1736869809113,0.8229,3208.2,3207.3,3.11788]
[1736869809636,0.8229,3208.2,3206.9,0.61886617]
[1736869809781,0.8229,3208.2,3207.7,3.11743]
[1736869809986,0.8229,3208.2,3207.3,3.8443]
[1736869810328,0.8229,3209.0,3207.5,3.0]
[1736869810489,0.8229,3208.7,3207.4,3.0]
[1736869810847,0.8229,3208.2,3206.9,3.73707617]
[1736869811010,0.8229,3208.2,3207.0,3.0]
[1736869811207,0.8229,3208.2,3207.3,3.11782]
[1736869811426,0.8229,3208.2,3207.0,3.0]
[1736869811737,0.8229,3208.2,3207.8,3.11739]
[1736869812223,0.8229,3208.2,3207.0,3.94663747]
[1736869812547,0.8229,3208.2,3207.7,3.1174]
[1736869813240,0.8229,3208.2,3207.6,3.11756]
[1736869813442,0.8229,3208.2,3207.4,3.11776]
[1736869813695,0.8229,3208.2,3206.8,0.8443]
[1736869813860,0.8229,3207.4,3206.4,3.11868]
[1736869814007,0.03897582,3207.3,3206.5,3.11865]
[1736869814205,0.8229,3207.2,3205.9,0.8443]
[1736869814431,0.8229,3207.2,3206.1,3.11905]
[1736869814432,0.8229,3207.0,3206.1,3.11905]
[1736869814750,0.8229,3206.8,3205.9,3.11924]
[1736869815033,0.8229,3206.8,3205.5,3.11963]
[1736869815238,0.8229,3206.8,3205.9,3.11924]
[1736869816539,3.1184,3206.8,3205.7,3.11934]
[1736869816836,0.7871,3206.6,3205.5,3.0]
[1736869817031,0.7871,3206.6,3205.9,3.11924]
[1736869817819,0.7871,3206.6,3205.6,3.0]
[1736869818312,0.7871,3206.6,3206.0,3.11905]
[1736869818514,0.7871,3206.6,3205.8,3.11932]
[1736869818718,0.7871,3206.6,3205.5,3.0]
[1736869818915,0.7871,3206.6,3205.8,3.94663747]
[1736869819137,0.7871,3207.5,3206.4,3.11867]
[1736869819343,0.7871,3207.3,3206.4,3.11867]
[1736869819642,0.7871,3207.3,3206.5,3.11866]
[1736869820914,0.7871,3207.3,3206.0,0.8443]
[1736869821120,0.7871,3207.3,3206.5,3.11864]
[1736869821617,4.73373747,3207.2,3205.9,3.0]
[1736869821805,0.7871,3207.1,3205.7,0.8443]
[1736869822007,0.7871,3207.1,3205.9,3.94663747]
[1736869822244,0.7871,3207.1,3207.0,3.11817]
[1736869822540,3.94663747,3208.6,3206.4,3.0]
[1736869822541,0.7871,3207.5,3206.5,0.8443]
[1736869822777,0.7871,3207.5,3206.7,3.0]
[1736869823039,3.94663747,3208.6,3207.5,3.11763]
[1736869823040,0.7871,3208.0,3207.5,3.11763]
[1736869823634,0.7871,3208.0,3207.0,3.0]
[1736869823837,0.7871,3208.0,3207.5,3.11767]
[1736869824034,0.7871,3208.0,3207.6,3.11756]
[1736869824345,0.7871,3208.0,3207.0,3.0]
[1736869824558,0.7871,3208.0,3207.4,3.11775]
[1736869824743,0.7871,3208.0,3207.0,3.312]
[1736869824940,0.7871,3208.0,3207.6,3.11757]
[1736869825632,0.7871,3208.0,3207.4,3.11775]
[1736869825835,3.15628705,3207.9,3206.5,0.78893931]
[1736869826022,0.7871,3208.0,3207.0,3.1181]
[1736869826228,0.390423,3207.9,3207.0,3.1181]
[1736869826621,3.90431,3208.0,3207.0,3.1181]
[1736869827223,3.90431,3208.0,3206.6,3.0]
[1736869827224,0.7871,3207.7,3206.6,3.0]
[1736869827422,0.7871,3207.5,3206.5,3.11862]
[1736869827741,0.7871,3207.4,3206.5,3.11862]
[1736869828317,0.7871,3207.4,3205.9,3.1192]
[1736869828519,3.90492,3207.4,3206.4,3.11866]
[1736869828742,0.7871,3207.2,3206.4,3.11866]
[1736869829572,0.7871,3207.2,3206.5,3.11866]
[1736869830380,0.7871,3207.2,3206.3,3.11878]
[1736869830711,0.7871,3207.2,3206.2,3.0]
[1736869830884,3.11799,3207.2,3205.9,3.11923]
[1736869831187,0.390492,3207.3,3205.8,3.11934]
[1736869831188,0.7815,3207.0,3205.8,3.11934]
[1736869831383,0.7815,3207.0,3206.0,3.11907]
[1736869831568,0.7815,3207.0,3205.8,3.0]
[1736869831765,0.7815,3207.0,3206.2,3.11895]
[1736869831968,0.7815,3207.0,3205.9,3.11924]
[1736869832152,0.7815,3207.0,3206.7,3.11847]
[1736869832550,3.66719,3208.1,3206.3,3.1188]
[1736869832551,0.7815,3207.3,3206.3,0.8247]
[1736869832857,0.7815,3207.3,3206.8,3.11837]
[1736869833185,0.7815,3208.1,3206.6,3.0]
[1736869833351,0.7815,3208.1,3206.8,3.0]
[1736869833557,0.04349528,3208.0,3207.2,3.0]
[1736869833758,0.7815,3208.1,3207.6,3.11749]
[1736869834179,0.7815,3208.1,3207.4,3.11776]
[1736869834379,0.04399678,3208.0,3207.2,3.0]
[1736869834598,0.7815,3208.1,3207.4,3.1177]
[1736869834970,0.04399678,3208.0,3206.9,3.40704777]
[1736869835156,0.04399678,3208.0,3206.9,0.28878777]
[1736869835157,0.7815,3207.9,3206.9,0.28878777]
[1736869835359,0.7815,3207.9,3207.2,3.11798]
[1736869835559,0.04408316,3207.8,3206.9,6.11822]
[1736869835859,0.7815,3207.9,3206.9,6.11822]
[1736869836096,0.04393241,3207.8,3207.7,3.11749]
[1736869836259,0.7815,3207.9,3207.7,3.11749]
[1736869836461,0.04373935,3207.8,3207.7,3.11749]
[1736869836672,0.7815,3207.9,3207.4,3.11769]
[1736869836870,0.0438938,3207.8,3207.1,3.0]
[1736869837070,0.7815,3207.9,3206.9,3.11819]
[1736869837295,0.8057,3207.6,3206.5,8.83]
[1736869837462,0.04390269,3207.5,3206.8,3.1183]
[1736869838695,0.04390269,3207.5,3206.9,3.11825]
[1736869839882,0.04390269,3207.5,3207.1,3.11806]
[1736869840092,0.04390269,3207.5,3207.4,3.11779]
[1736869840282,0.04390269,3207.5,3207.2,3.11789]
[1736869840482,0.8057,3207.6,3207.2,3.11789]
[1736869840678,0.8057,3207.6,3206.7,3.0]
[1736869841078,0.8057,3207.6,3207.3,3.11786]
[1736869841392,0.04369637,3207.5,3207.0,3.11809]
[1736869841618,0.04369637,3207.5,3206.8,3.11834]
[1736869841987,0.8057,3207.4,3206.8,3.11834]
[1736869842299,0.04424566,3207.3,3206.1,0.8143]
[1736869842511,0.04424566,3207.3,3207.2,3.11798]
[1736869842671,0.8057,3207.7,3207.0,3.11816]
[1736869842872,0.04448144,3207.6,3207.2,3.1179]
[1736869843068,0.04448144,3207.6,3206.4,3.11876]
[1736869843069,0.08345014,3207.6,3206.5,3.11866]
[1736869843276,0.8057,3207.5,3206.7,3.11838]
[1736869843610,0.0443303,3207.4,3206.7,3.11838]
[1736869843807,0.8057,3207.3,3206.1,0.8143]
[1736869844114,0.04421397,3207.2,3206.6,3.11848]
[1736869844313,0.04421397,3207.2,3205.9,3.94663747]
[1736869844499,0.8057,3207.0,3206.2,3.11887]
[1736869844700,0.8057,3207.0,3206.2,3.35078855]
[1736869844701,0.04417463,3206.9,3206.2,3.35078855]
[1736869844877,0.04417463,3206.9,3206.3,3.11884]
[1736869845207,0.04417463,3206.9,3206.8,3.11837]
[1736869845773,0.8057,3207.0,3206.9,3.11827]
[1736869845978,0.7812,3207.7,3206.6,3.1185]
[1736869846190,0.7812,3207.7,3207.0,3.11813]
[1736869846496,0.04361909,3207.6,3207.1,3.11798]
[1736869846702,0.04361909,3207.6,3206.6,3.1185]
[1736869846889,0.04361909,3207.6,3206.3,3.94663747]
[1736869846890,0.04361909,3207.6,3207.5,3.11769]
[1736869847087,0.7812,3207.7,3207.5,3.11769]
[1736869847307,3.27134092,3209.3,3207.1,3.91295]
[1736869847308,0.7812,3208.3,3207.1,4.74153747]
[1736869847515,0.7812,3208.3,3207.9,3.11721]
[1736869847717,0.04426997,3208.2,3207.2,3.0]
[1736869847905,0.7812,3208.3,3207.9,3.11722]
[1736869848318,0.04421207,3208.2,3207.9,3.11722]
[1736869848487,0.7812,3208.3,3207.9,3.11722]
[1736869848688,0.04421207,3208.2,3208.0,3.11717]
[1736869848907,0.7812,3208.3,3208.0,3.11717]
[1736869849220,0.04421207,3208.2,3208.0,3.11717]
[1736869849624,0.7812,3208.3,3208.1,3.1171]
[1736869849920,0.04463742,3208.2,3208.1,3.1171]
[1736869850100,0.7812,3209.1,3207.9,3.94663747]
[1736869850301,0.7812,3209.1,3208.5,3.1167]
[1736869850496,0.7812,3209.1,3207.9,3.94663747]
[1736869850698,0.04592464,3209.0,3208.9,3.11633]
[1736869850897,3.81644239,3211.1,3209.0,3.11623]
[1736869850898,0.7812,3209.6,3209.0,3.11623]
[1736869851111,3.94663747,3211.0,3208.8,3.94663747]
[1736869851112,0.93879596,3210.6,3209.5,3.11575]
[1736869851425,7.06093747,3211.0,3209.1,3.94663747]
[1736869851426,0.7812,3210.4,3209.1,3.94663747]
[1736869851630,3.89608,3210.4,3209.3,3.11585]
[1736869851930,3.89627,3210.2,3209.1,3.11605]
[1736869852351,0.04183908,3210.1,3208.8,3.0]
[1736869852636,3.15704908,3210.1,3209.1,3.11609]
[1736869853736,0.04183908,3210.1,3208.8,3.0]
[1736869853944,0.04183908,3210.1,3209.5,3.11575]
[1736869854241,0.04183908,3210.1,3209.8,3.11545]
[1736869854413,0.7812,3210.2,3209.8,3.11545]
[1736869854727,0.04190673,3210.1,3209.8,3.11545]
[1736869855036,0.7812,3210.5,3209.9,3.11532]
[1736869855402,0.04208094,3210.4,3209.9,3.11532]
[1736869857009,0.04208094,3210.4,3209.5,3.11575]
[1736869857206,0.04208094,3210.4,3210.3,3.11497]
[1736869857584,0.7887,3210.9,3210.4,3.11482]
[1736869857715,0.04287486,3210.8,3210.2,3.11504]
[1736869857920,0.7887,3210.9,3210.2,3.11504]
[1736869858119,0.04281783,3210.8,3209.8,3.11544]
[1736869858308,3.15730783,3210.8,3209.8,3.11544]
[1736869858503,0.39460078,3210.7,3209.7,3.0]
[1736869858755,0.0427826,3210.6,3209.8,3.11542]
[1736869858938,0.7887,3210.5,3209.6,8.83]
[1736869859325,0.0426665,3210.4,3209.6,11.94555]
[1736869859507,0.7887,3210.5,3209.6,11.94555]
[1736869859725,0.04251235,3210.4,3209.6,11.94555]
[1736869860101,0.04251235,3210.4,3209.6,8.83]
[1736869860299,0.7887,3210.3,3209.6,8.83]
[1736869860498,0.04255039,3210.2,3208.9,0.8171]
[1736869860759,0.04255039,3210.2,3209.8,0.8171]
[1736869861058,0.04255039,3210.2,3210.1,3.11516]
[1736869861217,0.7887,3211.0,3210.4,3.11486]
[1736869861400,0.7887,3211.0,3209.9,7.06199747]
[1736869861598,0.04255629,3210.9,3210.7,3.11453]
[1736869861813,0.7887,3211.0,3210.4,3.11478]
[1736869862216,0.7887,3211.0,3210.5,3.11471]
[1736869862403,0.7887,3211.0,3210.5,3.11468]
[1736869862404,0.04268015,3210.9,3210.5,3.11468]
[1736869862852,0.7887,3211.0,3210.5,3.11468]
[1736869863166,0.7887,3211.0,3210.0,3.0]
[1736869863322,0.7887,3211.0,3210.5,3.11477]
[1736869863728,0.04283431,3210.9,3210.5,3.11477]
[1736869864358,0.7887,3211.0,3210.2,3.0]
[1736869864517,0.8147,3211.6,3210.7,3.11458]
[1736869864719,0.04317421,3211.5,3210.8,3.11447]
[1736869864974,0.04317421,3211.5,3210.9,3.11438]
[1736869865105,0.04317421,3211.5,3210.4,3.8188]
[1736869865515,3.19594864,3211.5,3210.4,0.8188]
[1736869865762,0.40106486,3211.4,3210.4,0.8188]
[1736869865967,0.04317421,3211.5,3210.8,3.11441]
[1736869866148,0.04305818,3211.3,3210.5,3.11477]
[1736869866465,0.8147,3211.6,3210.5,3.11477]
[1736869866466,0.04300015,3211.2,3210.7,3.1145]
[1736869866605,0.8147,3211.6,3210.5,3.11474]
[1736869866808,3.11383,3211.5,3210.1,0.8188]
[1736869867064,1.126083,3211.4,3210.5,3.11477]
[1736869867363,0.04204403,3211.3,3210.5,3.11477]
[1736869867526,0.04204403,3211.3,3210.1,0.8188]
[1736869867724,0.04204403,3211.3,3210.7,3.11454]
[1736869867943,0.04204403,3211.3,3210.1,0.8188]
[1736869868251,0.04204403,3211.3,3210.3,3.11493]
[1736869868545,0.3970724,3211.2,3210.1,3.93395]
[1736869868744,0.43907551,3211.2,3210.1,3.93395]
[1736869868946,0.8147,3210.7,3209.8,3.11541]
[1736869869247,0.8147,3210.7,3209.7,0.15358499]
[1736869869248,0.8147,3210.7,3209.7,3.11547]
[1736869869453,0.8147,3210.5,3209.6,3.0]
[1736869869607,0.8147,3210.5,3209.5,3.11574]
[1736869869805,3.92967,3210.3,3209.3,3.11592]
[1736869870015,0.392967,3210.2,3209.3,3.11592]
[1736869870243,0.43571659,3210.2,3209.4,3.11583]
[1736869870613,0.8147,3210.1,3209.3,3.11592]
[1736869871016,0.04263346,3210.0,3209.3,3.11592]
[1736869871262,0.04263346,3210.0,3209.1,3.11605]
[1736869871465,0.8147,3210.1,3209.1,3.11605]
[1736869871970,0.04237203,3210.0,3209.1,3.11605]
[1736869872269,0.43959323,3210.0,3209.1,3.11605]
[1736869872484,0.85364378,3209.9,3208.6,3.11656]
[1736869872692,0.8147,3209.5,3208.5,3.11664]
[1736869872868,0.0418241,3209.8,3207.7,0.8188]
[1736869872869,0.63077519,3209.4,3207.7,0.8188]
[1736869873183,3.11682,3208.4,3207.3,3.11785]
[1736869873459,0.8147,3208.3,3207.4,3.11778]
[1736869873672,0.8147,3208.3,3207.2,7.60472909]
[1736869873673,3.97219558,3208.3,3207.2,7.60472909]
[1736869873842,0.03896481,3208.2,3207.0,3.11817]
[1736869874040,0.8147,3207.8,3206.8,3.11836]
[1736869874229,0.03990383,3207.7,3206.9,3.11827]
[1736869874428,0.03990383,3207.7,3206.6,4.48677909]
[1736869874429,0.03990383,3207.7,3206.7,3.0]
[1736869874635,0.03990383,3207.7,3207.0,3.11817]
[1736869874840,0.8147,3207.8,3207.1,3.11805]
[1736869875123,0.03924359,3207.7,3207.1,3.11802]
[1736869875329,0.03924359,3207.7,3207.2,3.11797]
[1736869875558,0.8147,3207.8,3207.0,3.11808]
[1736869875733,0.8147,3207.8,3207.2,3.11798]
[1736869875945,0.03866743,3207.7,3207.3,3.11782]
[1736869876144,0.8147,3207.8,3207.3,3.11782]
[1736869876453,0.03856746,3207.7,3207.3,3.11782]
[1736869876654,0.8147,3207.8,3207.1,3.11805]
[1736869876843,0.8147,3207.8,3206.6,6.11849]
[1736869877043,3.11757,3207.7,3206.6,3.0]
[1736869877247,3.15587953,3207.7,3206.7,3.11844]
[1736869877464,3.55293748,3207.7,3206.7,3.11844]
[1736869877842,0.03897405,3207.6,3206.5,3.11866]
[1736869878169,0.037879,3207.5,3206.6,3.11854]
[1736869878463,0.8326,3207.4,3206.2,3.8188]
[1736869878654,0.8326,3207.4,3206.6,3.11854]
[1736869878859,0.87119957,3207.4,3206.6,3.11854]
[1736869879265,0.87119957,3207.4,3206.4,3.11875]
[1736869879569,0.03897637,3207.3,3206.4,3.11875]
[1736869879868,0.03837488,3207.2,3206.4,3.11876]
[1736869880163,4.35318659,3207.4,3206.0,3.0]
[1736869880357,0.03764623,3207.1,3206.0,3.0]
[1736869880663,4.35318659,3207.4,3206.2,3.0]
[1736869880844,0.03815036,3207.0,3206.4,3.11874]
[1736869881244,0.03752983,3206.9,3206.4,3.11874]
[1736869881452,0.8326,3207.4,3206.4,3.11874]
[1736869881751,0.03776262,3207.3,3206.4,3.11874]
[1736869881933,0.03776262,3207.3,3206.3,3.11876]
[1736869882134,0.43657888,3207.3,3206.3,3.11876]
[1736869882339,0.43657888,3207.3,3206.0,0.15949471]
[1736869882539,0.5,3207.0,3206.3,3.11879]
[1736869882763,0.5,3207.0,3206.0,3.15949471]
[1736869882944,0.03752983,3206.9,3206.4,3.11867]
[1736869883140,0.5,3207.0,3206.4,3.11867]
[1736869883346,0.03803398,3206.8,3206.4,3.11867]
[1736869883531,0.8326,3206.7,3206.4,3.11867]
[1736869884367,0.8326,3206.7,3206.5,3.11865]
[1736869885370,0.8326,3206.7,3205.7,4.43726293]
[1736869885564,0.8326,3206.7,3205.9,3.11918]
[1736869885770,0.8326,3206.7,3206.4,3.1187]
[1736869886337,0.8326,3206.7,3206.5,3.11865]
[1736869886881,0.8326,3206.7,3206.6,3.11856]
[1736869887051,0.5,3207.0,3206.1,3.11905]
[1736869887257,0.5,3207.0,3206.9,3.11827]
[1736869889050,0.5,3207.0,3206.9,10.48067924]
[1736869889267,0.8326,3208.6,3207.7,3.11749]
[1736869889461,1.227512,3208.6,3207.6,3.11753]
[1736869889776,0.8326,3208.4,3207.4,3.11778]
[1736869889948,0.8326,3208.4,3207.0,8.83]
[1736869890149,0.8326,3207.8,3206.5,3.11866]
[1736869890471,3.95,3207.8,3206.8,3.11828]
[1736869890671,4.345,3207.8,3206.9,3.11824]
[1736869890871,0.03897211,3207.7,3206.9,3.11824]
[1736869891075,0.03897211,3207.7,3206.4,0.8199]
[1736869891076,0.8326,3207.7,3207.0,3.11817]
[1736869891454,0.8326,3207.7,3206.8,3.11829]
[1736869891759,0.8326,3207.7,3206.6,3.11856]
[1736869891965,0.8326,3207.7,3207.0,3.11815]
[1736869892165,0.87157113,3207.7,3207.0,3.11815]
[1736869892366,0.8326,3207.7,3207.0,3.11815]
[1736869892575,0.8326,3207.7,3206.8,3.11834]
[1736869892749,0.8326,3207.7,3206.4,1.44027389]
[1736869892953,0.8326,3207.7,3206.6,3.11856]
[1736869893175,0.8326,3207.7,3207.0,3.11816]
[1736869893399,0.8326,3207.7,3206.9,3.11824]
[1736869893675,0.8326,3207.7,3207.1,3.11804]
[1736869893980,0.8326,3207.7,3206.9,3.11826]
[1736869894170,0.8326,3207.7,3207.0,3.11817]
[1736869894348,0.8326,3207.7,3207.1,3.11807]
[1736869894541,0.8326,3207.7,3207.3,3.11785]
[1736869894772,0.8326,3207.7,3207.4,3.1177]
[1736869894939,0.8326,3207.7,3207.5,3.11768]
[1736869895276,0.8326,3208.8,3207.6,3.11759]
[1736869895499,0.8326,3208.8,3208.4,3.11678]
[1736869895674,0.8326,3208.8,3207.6,3.11759]
[1736869895675,0.8326,3208.8,3208.5,3.11671]
[1736869895878,3.5125112,3210.0,3209.0,3.1162]
[1736869896085,3.5125112,3210.0,3208.3,3.93674]
[1736869896086,1.18385112,3209.9,3208.4,3.0]
[1736869896285,0.8326,3209.9,3208.6,3.11662]
[1736869896522,0.8326,3209.9,3209.5,3.11571]
[1736869896852,0.03584465,3209.8,3209.5,3.11571]
[1736869897140,0.03584465,3209.8,3208.8,3.11642]
[1736869897289,0.8326,3209.9,3209.0,0.8199]
[1736869897489,6.00174,3212.6,3209.9,3.11534]
[1736869897490,0.8326,3210.7,3209.9,3.11534]
[1736869897694,0.03612035,3209.8,3209.4,3.94155681]
[1736869897901,0.8326,3210.7,3209.5,3.11575]
[1736869898096,0.03604698,3209.7,3209.6,3.11565]
[1736869898345,0.8326,3210.7,3209.6,3.11565]
[1736869898346,0.8326,3210.7,3210.1,3.11508]
[1736869898654,0.8326,3210.7,3210.0,3.11525]
[1736869898935,0.8326,3210.7,3210.1,3.11514]
[1736869899106,0.8326,3210.7,3209.6,3.11565]
[1736869899437,0.8326,3210.7,3209.9,3.11533]
[1736869899619,0.8326,3210.7,3209.6,3.11565]
[1736869899819,0.8326,3210.7,3209.9,3.11532]
[1736869900019,1.227299,3210.7,3209.6,3.11565]
[1736869900221,3.15370576,3210.6,3209.3,3.0]
[1736869900427,3.11477,3210.6,3209.3,3.0]
[1736869900598,0.8326,3210.4,3209.5,3.11566]
[1736869900803,0.8326,3210.4,3209.5,3.11571]
[1736869901030,0.03657902,3210.3,3209.5,3.11571]
[1736869901535,0.03657902,3210.3,3209.1,3.11613]
[1736869901756,0.03657902,3210.3,3208.9,6.11625]
[1736869901958,0.03657902,3210.3,3209.3,3.0]
[1736869902104,0.8326,3210.4,3209.7,3.11547]
[1736869902305,0.8326,3210.4,3209.8,3.11541]
[1736869902503,0.03657902,3210.3,3210.1,3.11516]
[1736869902767,0.8326,3210.9,3209.7,3.0]
[1736869902901,0.8326,3210.9,3210.3,3.11489]
[1736869903242,0.03683136,3210.8,3210.3,3.1149]
[1736869903440,0.03683136,3210.8,3210.4,3.11486]
[1736869903644,0.03683136,3210.8,3210.7,3.11458]
[1736869904010,0.8326,3211.8,3211.2,3.11406]
[1736869904243,0.8326,3211.8,3210.6,3.11468]
[1736869904504,0.8326,3212.5,3211.6,3.0]
[1736869904702,0.8326,3212.5,3212.0,3.11323]
[1736869905128,0.03704635,3212.4,3212.1,3.11315]
[1736869905338,3.0,3213.5,3211.5,3.0]
[1736869905339,0.7925,3212.9,3212.0,3.94155681]
[1736869905540,0.7925,3212.9,3212.1,3.11317]
[1736869905743,0.7925,3212.9,3212.3,3.0]
[1736869905966,0.7925,3213.7,3212.8,3.11251]
[1736869906166,0.7925,3214.3,3213.4,3.11195]
[1736869906385,0.03668831,3213.6,3213.4,3.11195]
[1736869906643,0.7925,3214.3,3213.2,3.11215]
[1736869906947,0.53490819,3214.2,3213.2,3.11215]